[Event "Early-Titled-Tuesday-Blitz-September-05-2023"]
[Site "Chess.com"]
[Date "2023.09.05"]
[Round "9"]
[White "Lennis93"]
[Black "Firouzja2003"]
[Result "1/2-1/2"]
[WhiteElo "2834"]
[BlackElo "3108"]
[TimeControl "180+1"]
[EndTime "9:43:24 PDT"]
[Termination "Game drawn by repetition"]

1. Nf3 {[%clk 0:03:00.9]} 1... Nf6 {[%clk 0:03:00.2]} 2. c4 {[%clk 0:03:00.5]}
2... g6 {[%clk 0:03:00.7]} 3. Nc3 {[%clk 0:02:58.1]} 3... Bg7 {[%clk 0:03:00.8]}
4. e4 {[%clk 0:02:58.5]} 4... d6 {[%clk 0:03:01.5]} 5. d4 {[%clk 0:02:58.5]}
5... O-O {[%clk 0:03:02.3]} 6. h3 {[%clk 0:02:52.5]} 6... e5 {[%clk 0:03:02.4]}
7. d5 {[%clk 0:02:51.6]} 7... a5 {[%clk 0:03:03.1]} 8. Be3 {[%clk 0:02:50.2]}
8... Na6 {[%clk 0:03:04]} 9. Bd3 {[%clk 0:02:49.8]} 9... Nc5 {[%clk 0:03:04.5]}
10. Bc2 {[%clk 0:02:49.5]} 10... c6 {[%clk 0:03:05.2]} 11. O-O {[%clk
0:02:32.5]} 11... cxd5 {[%clk 0:03:04.6]} 12. cxd5 {[%clk 0:02:31]} 12... b6
{[%clk 0:03:04.9]} 13. Bg5 {[%clk 0:02:16.9]} 13... h6 {[%clk 0:03:04.1]} 14.
Bh4 {[%clk 0:02:14.9]} 14... Ba6 {[%clk 0:03:04.2]} 15. Re1 {[%clk 0:02:14.5]}
15... Qd7 {[%clk 0:03:03.2]} 16. a3 {[%clk 0:02:14.5]} 16... Qc8 {[%clk
0:02:47.1]} 17. Bxf6 {[%clk 0:02:06.9]} 17... Bxf6 {[%clk 0:02:45.6]} 18. Qd2
{[%clk 0:02:07.4]} 18... Bg7 {[%clk 0:02:34.5]} 19. b4 {[%clk 0:02:07.4]} 19...
Nd7 {[%clk 0:02:31.3]} 20. Bd3 {[%clk 0:02:02.3]} 20... Nf6 {[%clk 0:02:27.2]}
21. Bxa6 {[%clk 0:01:59.8]} 21... Qxa6 {[%clk 0:02:28.1]} 22. b5 {[%clk
0:01:59.7]} 22... Qb7 {[%clk 0:02:28.3]} 23. Na4 {[%clk 0:01:54.7]} 23... Rfc8
{[%clk 0:02:28.5]} 24. Qe3 {[%clk 0:01:53.8]} 24... Nd7 {[%clk 0:02:24.9]} 25.
Rac1 {[%clk 0:01:47.5]} 25... Nc5 {[%clk 0:02:24]} 26. Nxc5 {[%clk 0:01:47.1]}
26... bxc5 {[%clk 0:02:24.3]} 27. a4 {[%clk 0:01:47.2]} 27... Bf6 {[%clk
0:02:14]} 28. Qxh6 {[%clk 0:01:45.4]} 28... c4 {[%clk 0:02:13.3]} 29. Rc3 {[%clk
0:01:43.2]} 29... Rc5 {[%clk 0:02:09.7]} 30. h4 {[%clk 0:01:43.2]} 30... Qe7
{[%clk 0:02:07.4]} 31. Ng5 {[%clk 0:01:40.9]} 31... Bxg5 {[%clk 0:01:59.3]} 32.
hxg5 {[%clk 0:01:41.8]} 32... Qf8 {[%clk 0:01:59.8]} 33. Qh3 {[%clk 0:01:36.9]}
33... Rac8 {[%clk 0:01:51.8]} 34. b6 {[%clk 0:01:34]} 34... Rb8 {[%clk
0:01:51.4]} 35. Rb1 {[%clk 0:01:34.2]} 35... Rb7 {[%clk 0:01:51.4]} 36. Rb5
{[%clk 0:01:23.4]} 36... Qd8 {[%clk 0:00:52.2]} 37. Qh6 {[%clk 0:00:48.4]} 37...
Qf8 {[%clk 0:00:43]} 38. Rxc5 {[%clk 0:00:36]} 38... dxc5 {[%clk 0:00:43.5]} 39.
Rxc4 {[%clk 0:00:34.4]} 39... Rxb6 {[%clk 0:00:44]} 40. Qxf8+ {[%clk 0:00:29.6]}
40... Kxf8 {[%clk 0:00:44.9]} 41. Rxc5 {[%clk 0:00:29.9]} 41... Rb4 {[%clk
0:00:45.8]} 42. Rxa5 {[%clk 0:00:24.6]} 42... Rxe4 {[%clk 0:00:45.4]} 43. d6
{[%clk 0:00:21.8]} 43... Ke8 {[%clk 0:00:36.1]} 44. Ra7 {[%clk 0:00:21.7]} 44...
Rd4 {[%clk 0:00:28.3]} 45. Re7+ {[%clk 0:00:21.7]} 45... Kf8 {[%clk 0:00:27.6]}
46. Rxe5 {[%clk 0:00:21.9]} 46... Rxa4 {[%clk 0:00:28]} 47. d7 {[%clk
0:00:20.1]} 47... Ra8 {[%clk 0:00:28.5]} 48. Rd5 {[%clk 0:00:10]} 48... Rd8
{[%clk 0:00:28.1]} 49. Kh2 {[%clk 0:00:10.6]} 49... Ke7 {[%clk 0:00:29]} 50. Kg3
{[%clk 0:00:11.2]} 50... Ke6 {[%clk 0:00:29.2]} 51. Rd3 {[%clk 0:00:10.7]} 51...
Kf5 {[%clk 0:00:29.5]} 52. f4 {[%clk 0:00:07.2]} 52... Ke6 {[%clk 0:00:23.6]}
53. Kg4 {[%clk 0:00:06.5]} 53... Ke7 {[%clk 0:00:21.2]} 54. f5 {[%clk
0:00:06.4]} 54... Rxd7 {[%clk 0:00:18.8]} 55. f6+ {[%clk 0:00:05.5]} 55... Ke6
{[%clk 0:00:14.8]} 56. Rxd7 {[%clk 0:00:05.3]} 56... Kxd7 {[%clk 0:00:15.7]} 57.
Kf4 {[%clk 0:00:04.7]} 57... Kd6 {[%clk 0:00:16.1]} 58. Ke4 {[%clk 0:00:04.7]}
58... Kc5 {[%clk 0:00:09.7]} 59. Ke5 {[%clk 0:00:04.8]} 59... Kc6 {[%clk
0:00:10.4]} 60. Ke4 {[%clk 0:00:04.8]} 60... Kc5 {[%clk 0:00:10.5]} 61. Ke5
{[%clk 0:00:05.3]} 61... Kc6 {[%clk 0:00:11.1]} 62. Ke4 {[%clk 0:00:05.7]} 62...
Kc5 {[%clk 0:00:11.3]} 1/2-1/2

[Event "Early-Titled-Tuesday-Blitz-September-05-2023"]
[Site "Chess.com"]
[Date "2023.09.05"]
[Round "9"]
[White "TrenerChos"]
[Black "MartinMatthiesen"]
[Result "0-1"]
[WhiteElo "2593"]
[BlackElo "2491"]
[TimeControl "180+1"]
[EndTime "9:43:27 PDT"]
[Termination "MartinMatthiesen won on time"]

1. d4 {[%clk 0:02:59.7]} 1... Nf6 {[%clk 0:02:59.4]} 2. Nf3 {[%clk 0:03:00.5]}
2... d5 {[%clk 0:02:59.1]} 3. g3 {[%clk 0:02:55.2]} 3... Bf5 {[%clk 0:02:56.9]}
4. Bg2 {[%clk 0:02:55.2]} 4... c6 {[%clk 0:02:56.9]} 5. O-O {[%clk 0:02:51.9]}
5... e6 {[%clk 0:02:56.5]} 6. b3 {[%clk 0:02:51.3]} 6... Bd6 {[%clk 0:02:54.4]}
7. Bb2 {[%clk 0:02:52.2]} 7... O-O {[%clk 0:02:53.7]} 8. Nbd2 {[%clk 0:02:52.6]}
8... Qe7 {[%clk 0:02:52.8]} 9. c4 {[%clk 0:02:51.6]} 9... Nbd7 {[%clk 0:02:50]}
10. Nh4 {[%clk 0:02:50.5]} 10... Bg4 {[%clk 0:02:46.4]} 11. h3 {[%clk
0:02:48.3]} 11... Bh5 {[%clk 0:02:46.1]} 12. g4 {[%clk 0:02:48.3]} 12... Nxg4
{[%clk 0:02:34.5]} 13. Nhf3 {[%clk 0:02:39.6]} 13... Ngf6 {[%clk 0:02:32.7]} 14.
Ne5 {[%clk 0:02:39.1]} 14... Rfd8 {[%clk 0:02:24.1]} 15. Re1 {[%clk 0:02:36.8]}
15... Bb4 {[%clk 0:02:21.2]} 16. a3 {[%clk 0:02:34.9]} 16... Ba5 {[%clk
0:02:10.4]} 17. Qc2 {[%clk 0:02:22.9]} 17... Rac8 {[%clk 0:01:45.6]} 18. b4
{[%clk 0:02:19]} 18... Bc7 {[%clk 0:01:42.8]} 19. Nd3 {[%clk 0:02:15.8]} 19...
Bg6 {[%clk 0:01:38.6]} 20. e4 {[%clk 0:02:11.8]} 20... dxe4 {[%clk 0:01:35.9]}
21. Nxe4 {[%clk 0:02:12.6]} 21... Nxe4 {[%clk 0:01:35]} 22. Bxe4 {[%clk
0:02:13.5]} 22... Qg5+ {[%clk 0:01:30.2]} 23. Kf1 {[%clk 0:01:53.9]} 23... Qh5
{[%clk 0:01:24.3]} 24. Bg2 {[%clk 0:01:50.2]} 24... Ne5 {[%clk 0:01:04.5]} 25.
Rad1 {[%clk 0:01:03.3]} 25... Nxd3 {[%clk 0:00:58.8]} 26. Rxd3 {[%clk
0:01:04.2]} 26... Bxd3+ {[%clk 0:00:52.3]} 27. Qxd3 {[%clk 0:01:05.1]} 27... Bb6
{[%clk 0:00:36.7]} 28. Re4 {[%clk 0:00:59.5]} 28... Qf5 {[%clk 0:00:33.4]} 29.
Qe2 {[%clk 0:00:58.4]} 29... Rd7 {[%clk 0:00:26.3]} 30. Qe3 {[%clk 0:00:37.9]}
30... Rcd8 {[%clk 0:00:24.9]} 31. Bc3 {[%clk 0:00:32.7]} 31... Qf6 {[%clk
0:00:18.2]} 32. Rf4 {[%clk 0:00:19.6]} 32... Qe7 {[%clk 0:00:16]} 33. c5 {[%clk
0:00:17.2]} 33... Bc7 {[%clk 0:00:16.2]} 34. Rg4 {[%clk 0:00:17.6]} 34... g6
{[%clk 0:00:16]} 35. h4 {[%clk 0:00:16.1]} 35... Rd5 {[%clk 0:00:16.1]} 36. Bxd5
{[%clk 0:00:15.3]} 36... Rxd5 {[%clk 0:00:17]} 37. Ke2 {[%clk 0:00:14.7]} 37...
Bd8 {[%clk 0:00:16.6]} 38. Qf3 {[%clk 0:00:12.9]} 38... Qd7 {[%clk 0:00:16.2]}
39. Re4 {[%clk 0:00:11]} 39... Be7 {[%clk 0:00:15.4]} 40. Kd3 {[%clk 0:00:08.2]}
40... Bf8 {[%clk 0:00:15.7]} 41. Kc2 {[%clk 0:00:08.1]} 41... Bg7 {[%clk
0:00:16.1]} 42. Qf4 {[%clk 0:00:06.2]} 42... h5 {[%clk 0:00:15.4]} 43. Qe3
{[%clk 0:00:03.8]} 43... Qe7 {[%clk 0:00:14]} 44. Kb3 {[%clk 0:00:02.9]} 44...
Qf6 {[%clk 0:00:14]} 45. a4 {[%clk 0:00:03.3]} 45... Qf5 {[%clk 0:00:14.2]} 46.
b5 {[%clk 0:00:03.1]} 46... Qf6 {[%clk 0:00:12.3]} 47. f4 {[%clk 0:00:03.1]}
47... Qe7 {[%clk 0:00:12.3]} 48. Bb4 {[%clk 0:00:02.2]} 48... cxb5 {[%clk
0:00:11.8]} 49. axb5 {[%clk 0:00:02.4]} 49... Qd7 {[%clk 0:00:12.2]} 50. Kc4
{[%clk 0:00:02.7]} 50... a6 {[%clk 0:00:11.8]} 51. bxa6 {[%clk 0:00:02.9]} 51...
bxa6 {[%clk 0:00:12.5]} 52. Qd3 {[%clk 0:00:03.2]} 52... Qb5+ {[%clk 0:00:12.6]}
53. Kc3 {[%clk 0:00:03.5]} 53... Qc6 {[%clk 0:00:12.2]} 54. Kc4 {[%clk
0:00:02.5]} 54... a5 {[%clk 0:00:11.7]} 55. Bxa5 {[%clk 0:00:02.3]} 55... Bxd4
{[%clk 0:00:11.3]} 56. Rxd4 {[%clk 0:00:02.2]} 56... Qxc5+ {[%clk 0:00:11.6]}
0-1

[Event "Early-Titled-Tuesday-Blitz-September-05-2023"]
[Site "Chess.com"]
[Date "2023.09.05"]
[Round "9"]
[White "Chessbard1972"]
[Black "emeli_chess"]
[Result "1/2-1/2"]
[WhiteElo "2515"]
[BlackElo "2376"]
[TimeControl "180+1"]
[EndTime "9:43:27 PDT"]
[Termination "Game drawn - insufficient material"]

1. d4 {[%clk 0:03:00.9]} 1... Nf6 {[%clk 0:02:59.7]} 2. c4 {[%clk 0:03:00.4]}
2... e6 {[%clk 0:02:59.9]} 3. Nf3 {[%clk 0:03:00.2]} 3... d5 {[%clk 0:02:59.8]}
4. Nc3 {[%clk 0:02:59.7]} 4... Bb4 {[%clk 0:02:59.3]} 5. e3 {[%clk 0:02:58.8]}
5... O-O {[%clk 0:02:58.1]} 6. Bd2 {[%clk 0:02:59.2]} 6... Nc6 {[%clk
0:02:56.1]} 7. Bd3 {[%clk 0:02:55.7]} 7... dxc4 {[%clk 0:02:56]} 8. Bxc4 {[%clk
0:02:55.5]} 8... Bd6 {[%clk 0:02:56.1]} 9. O-O {[%clk 0:02:52.3]} 9... a6 {[%clk
0:02:56.3]} 10. e4 {[%clk 0:02:39.7]} 10... e5 {[%clk 0:02:56.2]} 11. d5 {[%clk
0:02:37]} 11... Ne7 {[%clk 0:02:56.4]} 12. Nh4 {[%clk 0:02:28.7]} 12... g6
{[%clk 0:02:34.9]} 13. Bh6 {[%clk 0:02:26.4]} 13... Re8 {[%clk 0:02:33.9]} 14.
Re1 {[%clk 0:02:23.8]} 14... Ng4 {[%clk 0:02:21.6]} 15. Bg5 {[%clk 0:02:16.7]}
15... f6 {[%clk 0:02:18.2]} 16. Bd2 {[%clk 0:02:15.6]} 16... f5 {[%clk
0:02:13.1]} 17. exf5 {[%clk 0:02:13.6]} 17... gxf5 {[%clk 0:02:10.7]} 18. h3
{[%clk 0:02:10.5]} 18... Nf6 {[%clk 0:02:09.9]} 19. Bg5 {[%clk 0:02:09.5]} 19...
Ng6 {[%clk 0:02:05.7]} 20. Nxg6 {[%clk 0:02:08.9]} 20... hxg6 {[%clk 0:02:05.7]}
21. Qd2 {[%clk 0:02:00]} 21... Qe7 {[%clk 0:02:04.1]} 22. f4 {[%clk 0:01:56.4]}
22... e4 {[%clk 0:02:03.9]} 23. Kh1 {[%clk 0:01:51.2]} 23... Qg7 {[%clk
0:01:53.7]} 24. Ne2 {[%clk 0:01:46]} 24... Nh5 {[%clk 0:01:52.2]} 25. Nd4 {[%clk
0:01:38.6]} 25... Bd7 {[%clk 0:01:40.4]} 26. Rac1 {[%clk 0:01:32.5]} 26... e3
{[%clk 0:01:34.6]} 27. Rxe3 {[%clk 0:01:27.9]} 27... Rxe3 {[%clk 0:01:34.4]} 28.
Qxe3 {[%clk 0:01:28.2]} 28... Re8 {[%clk 0:01:34.6]} 29. Ne6 {[%clk 0:01:27]}
29... Qxb2 {[%clk 0:01:29]} 30. Re1 {[%clk 0:01:24.4]} 30... b5 {[%clk
0:01:07.1]} 31. Bb3 {[%clk 0:01:24.5]} 31... a5 {[%clk 0:01:03.6]} 32. Re2
{[%clk 0:01:23.3]} 32... Qxe2 {[%clk 0:01:02.1]} 33. Qxe2 {[%clk 0:01:22.9]}
33... Ng3+ {[%clk 0:01:02.3]} 34. Kh2 {[%clk 0:01:23.8]} 34... Nxe2 {[%clk
0:01:02.7]} 35. g3 {[%clk 0:01:20.5]} 35... a4 {[%clk 0:01:02.3]} 36. Bc2 {[%clk
0:01:18.7]} 36... Nc3 {[%clk 0:01:01.7]} 37. g4 {[%clk 0:01:10.3]} 37... Nxa2
{[%clk 0:00:57.8]} 38. gxf5 {[%clk 0:01:04.4]} 38... gxf5 {[%clk 0:00:58]} 39.
Bxf5 {[%clk 0:01:03.9]} 39... Nc3 {[%clk 0:00:55.6]} 40. Bg6 {[%clk 0:00:59]}
40... Rxe6 {[%clk 0:00:52.2]} 41. dxe6 {[%clk 0:00:58.5]} 41... Bxe6 {[%clk
0:00:52.6]} 42. h4 {[%clk 0:00:54.8]} 42... Bf8 {[%clk 0:00:37.9]} 43. f5 {[%clk
0:00:53.1]} 43... Bd5 {[%clk 0:00:34.5]} 44. h5 {[%clk 0:00:52.6]} 44... Ne4
{[%clk 0:00:32.5]} 45. Be3 {[%clk 0:00:47.2]} 45... Nf6 {[%clk 0:00:32.1]} 46.
Bd4 {[%clk 0:00:46.8]} 46... Bg7 {[%clk 0:00:31]} 47. h6 {[%clk 0:00:47.2]}
47... Ng4+ {[%clk 0:00:30.6]} 48. Kg3 {[%clk 0:00:44.6]} 48... Nxh6 {[%clk
0:00:30.5]} 49. f6 {[%clk 0:00:43.5]} 49... Bf8 {[%clk 0:00:19.6]} 50. Kf4
{[%clk 0:00:42.9]} 50... Bf7 {[%clk 0:00:19.1]} 51. Be4 {[%clk 0:00:41.4]} 51...
a3 {[%clk 0:00:18.7]} 52. Kg5 {[%clk 0:00:40.5]} 52... a2 {[%clk 0:00:18.9]} 53.
Ba1 {[%clk 0:00:39.8]} 53... b4 {[%clk 0:00:18.7]} 54. Bf5 {[%clk 0:00:38.3]}
54... b3 {[%clk 0:00:18.7]} 55. Bd3 {[%clk 0:00:36.9]} 55... c5 {[%clk
0:00:18.7]} 56. Be4 {[%clk 0:00:36.5]} 56... c4 {[%clk 0:00:19.1]} 57. Kf4
{[%clk 0:00:31.6]} 57... Be6 {[%clk 0:00:16.7]} 58. Ke5 {[%clk 0:00:31.2]} 58...
Kf7 {[%clk 0:00:16.1]} 59. Bf3 {[%clk 0:00:29.1]} 59... Bf5 {[%clk 0:00:13.8]}
60. Bd5+ {[%clk 0:00:27.9]} 60... Be6 {[%clk 0:00:14.1]} 61. Bxe6+ {[%clk
0:00:27.7]} 61... Kg6 {[%clk 0:00:13]} 62. Bxc4 {[%clk 0:00:27.7]} 62... Ng4+
{[%clk 0:00:10.7]} 63. Ke6 {[%clk 0:00:25.8]} 63... Nxf6 {[%clk 0:00:06.4]} 64.
Bxf6 {[%clk 0:00:25.2]} 64... Bg7 {[%clk 0:00:06.8]} 65. Bxb3 {[%clk 0:00:22.5]}
65... a1=Q {[%clk 0:00:05.2]} 66. Bxa1 {[%clk 0:00:21.5]} 66... Bxa1 {[%clk
0:00:04.8]} 1/2-1/2

[Event "Early-Titled-Tuesday-Blitz-September-05-2023"]
[Site "Chess.com"]
[Date "2023.09.05"]
[Round "9"]
[White "qx4z"]
[Black "jsdbv18"]
[Result "1-0"]
[WhiteElo "2827"]
[BlackElo "2620"]
[TimeControl "180+1"]
[EndTime "9:43:28 PDT"]
[Termination "qx4z won by resignation"]

1. d4 {[%clk 0:03:00.9]} 1... Nf6 {[%clk 0:03:00.1]} 2. Bf4 {[%clk 0:02:59.9]}
2... d5 {[%clk 0:03:00]} 3. e3 {[%clk 0:02:59.9]} 3... c5 {[%clk 0:03:00.6]} 4.
Nf3 {[%clk 0:02:59.4]} 4... Nc6 {[%clk 0:03:01]} 5. Nbd2 {[%clk 0:02:59.3]} 5...
cxd4 {[%clk 0:03:00.8]} 6. exd4 {[%clk 0:03:00.2]} 6... Bg4 {[%clk 0:03:01.2]}
7. c3 {[%clk 0:03:00.4]} 7... e6 {[%clk 0:03:00.8]} 8. Qb3 {[%clk 0:03:00.8]}
8... Qc8 {[%clk 0:02:56]} 9. h3 {[%clk 0:03:00.5]} 9... Bh5 {[%clk 0:02:48.6]}
10. g4 {[%clk 0:03:00.4]} 10... Bg6 {[%clk 0:02:48.5]} 11. Nh4 {[%clk
0:03:01.1]} 11... Be4 {[%clk 0:02:34.9]} 12. Nxe4 {[%clk 0:02:58.3]} 12... Nxe4
{[%clk 0:02:34.1]} 13. Nf3 {[%clk 0:02:54.8]} 13... Bd6 {[%clk 0:02:31.4]} 14.
Bxd6 {[%clk 0:02:51.2]} 14... Nxd6 {[%clk 0:02:32.3]} 15. Bg2 {[%clk 0:02:49.9]}
15... O-O {[%clk 0:02:28.5]} 16. O-O {[%clk 0:02:49.3]} 16... Ne7 {[%clk
0:02:25.8]} 17. Rfe1 {[%clk 0:02:47]} 17... Ng6 {[%clk 0:02:24.1]} 18. Qc2
{[%clk 0:02:44.2]} 18... b5 {[%clk 0:02:14.6]} 19. Bf1 {[%clk 0:02:40.6]} 19...
Qc7 {[%clk 0:02:09.5]} 20. Rac1 {[%clk 0:02:36.6]} 20... a5 {[%clk 0:02:06]} 21.
Ne5 {[%clk 0:02:36.1]} 21... Rfc8 {[%clk 0:01:59.6]} 22. a3 {[%clk 0:02:20.2]}
22... b4 {[%clk 0:01:52.3]} 23. axb4 {[%clk 0:02:20.3]} 23... axb4 {[%clk
0:01:52.7]} 24. Qb3 {[%clk 0:02:21.1]} 24... Nxe5 {[%clk 0:01:41.4]} 25. dxe5
{[%clk 0:02:19.5]} 25... Ne4 {[%clk 0:01:41.5]} 26. Qxb4 {[%clk 0:02:07.6]}
26... Qxe5 {[%clk 0:01:39.3]} 27. Bg2 {[%clk 0:02:01.3]} 27... Rab8 {[%clk
0:01:36.2]} 28. Qd4 {[%clk 0:01:52]} 28... Qxd4 {[%clk 0:01:33.8]} 29. cxd4
{[%clk 0:01:52.9]} 29... Nf6 {[%clk 0:01:29.2]} 30. b4 {[%clk 0:01:48.3]} 30...
g5 {[%clk 0:01:27.9]} 31. Rxc8+ {[%clk 0:01:47.8]} 31... Rxc8 {[%clk 0:01:28.2]}
32. b5 {[%clk 0:01:48.7]} 32... Rb8 {[%clk 0:01:27.1]} 33. Bf1 {[%clk
0:01:48.9]} 33... Ne8 {[%clk 0:01:12.8]} 34. Rc1 {[%clk 0:01:26.9]} 34... Nd6
{[%clk 0:01:11.9]} 35. Rc5 {[%clk 0:01:27]} 35... Kf8 {[%clk 0:00:55.3]} 36. f3
{[%clk 0:01:26.7]} 36... Ke7 {[%clk 0:00:46.6]} 37. Kf2 {[%clk 0:01:26.6]} 37...
h6 {[%clk 0:00:44.7]} 38. Ke3 {[%clk 0:01:25.4]} 38... f5 {[%clk 0:00:37.6]} 39.
Kd2 {[%clk 0:01:20.5]} 39... Ra8 {[%clk 0:00:29.6]} 40. Bd3 {[%clk 0:00:37.8]}
40... Ra2+ {[%clk 0:00:18.6]} 41. Kc3 {[%clk 0:00:37.9]} 41... Ra3+ {[%clk
0:00:19.3]} 42. Kc2 {[%clk 0:00:38.3]} 42... Ra2+ {[%clk 0:00:19.1]} 43. Kb3
{[%clk 0:00:38.5]} 43... Rd2 {[%clk 0:00:18.9]} 44. Kc3 {[%clk 0:00:38.5]} 44...
Ra2 {[%clk 0:00:17.2]} 45. b6 {[%clk 0:00:38.8]} 45... Ra3+ {[%clk 0:00:11.5]}
46. Kc2 {[%clk 0:00:37.3]} 46... Ra4 {[%clk 0:00:08.6]} 47. Rc7+ {[%clk
0:00:21.8]} 47... Kd8 {[%clk 0:00:08.5]} 48. Rh7 {[%clk 0:00:17.6]} 48... Rb4
{[%clk 0:00:06.1]} 49. Rxh6 {[%clk 0:00:11.1]} 49... fxg4 {[%clk 0:00:04.5]} 50.
fxg4 {[%clk 0:00:06.1]} 50... Ke7 {[%clk 0:00:04.1]} 51. Rh7+ {[%clk 0:00:05.3]}
51... Kd8 {[%clk 0:00:01.8]} 52. Rg7 {[%clk 0:00:04.3]} 52... Rxb6 {[%clk
0:00:01.8]} 53. Rxg5 {[%clk 0:00:05]} 53... Ke7 {[%clk 0:00:01.8]} 54. Rg7+
{[%clk 0:00:04.9]} 54... Kf6 {[%clk 0:00:02.4]} 55. Rc7 {[%clk 0:00:05.6]} 55...
Rb4 {[%clk 0:00:02.1]} 56. Rc6 {[%clk 0:00:06.1]} 56... Rxd4 {[%clk 0:00:02.5]}
57. Rxd6 {[%clk 0:00:05.7]} 57... Ke5 {[%clk 0:00:03.4]} 58. Ra6 {[%clk
0:00:05.9]} 1-0

[Event "Early-Titled-Tuesday-Blitz-September-05-2023"]
[Site "Chess.com"]
[Date "2023.09.05"]
[Round "9"]
[White "chess123456s"]
[Black "LoaySameer"]
[Result "1-0"]
[WhiteElo "2665"]
[BlackElo "2542"]
[TimeControl "180+1"]
[EndTime "9:43:33 PDT"]
[Termination "chess123456s won by resignation"]

1. d4 {[%clk 0:03:00.9]} 1... Nf6 {[%clk 0:03:00]} 2. Nc3 {[%clk 0:03:01.4]}
2... g6 {[%clk 0:03:00.4]} 3. e4 {[%clk 0:03:00.8]} 3... d6 {[%clk 0:03:00.3]}
4. f4 {[%clk 0:03:01.4]} 4... Bg7 {[%clk 0:02:59.8]} 5. Nf3 {[%clk 0:03:01.7]}
5... O-O {[%clk 0:03:00.5]} 6. e5 {[%clk 0:03:02.1]} 6... Nfd7 {[%clk
0:02:57.1]} 7. Bc4 {[%clk 0:03:01.7]} 7... Nb6 {[%clk 0:02:57.2]} 8. Bb3 {[%clk
0:03:01.3]} 8... c5 {[%clk 0:02:54.6]} 9. dxc5 {[%clk 0:02:59]} 9... dxc5 {[%clk
0:02:54.8]} 10. Qxd8 {[%clk 0:02:58.8]} 10... Rxd8 {[%clk 0:02:55.7]} 11. Be3
{[%clk 0:02:58.8]} 11... Na6 {[%clk 0:02:40.9]} 12. a4 {[%clk 0:02:46]} 12...
Bf5 {[%clk 0:02:26.1]} 13. a5 {[%clk 0:02:36.7]} 13... c4 {[%clk 0:02:17.2]} 14.
Ba2 {[%clk 0:02:06]} 14... Nd7 {[%clk 0:01:45.2]} 15. Nd4 {[%clk 0:01:56.4]}
15... Nb4 {[%clk 0:01:24.2]} 16. Nxf5 {[%clk 0:01:21.9]} 16... gxf5 {[%clk
0:01:15.6]} 17. O-O-O {[%clk 0:01:15.2]} 17... Nxa2+ {[%clk 0:01:10.6]} 18. Nxa2
{[%clk 0:01:16.1]} 18... b6 {[%clk 0:00:58.7]} 19. Nb4 {[%clk 0:01:14.5]} 19...
Nf8 {[%clk 0:00:44.9]} 20. Rxd8 {[%clk 0:00:59]} 20... Rxd8 {[%clk 0:00:45.8]}
21. axb6 {[%clk 0:00:57]} 21... axb6 {[%clk 0:00:46.7]} 22. Bxb6 {[%clk
0:00:50.5]} 22... Rb8 {[%clk 0:00:46.9]} 23. Bc5 {[%clk 0:00:21.4]} 23... Ng6
{[%clk 0:00:46.9]} 24. Nd5 {[%clk 0:00:19.3]} 24... Kf8 {[%clk 0:00:20.5]} 25.
Be3 {[%clk 0:00:18.1]} 25... Ke8 {[%clk 0:00:20.4]} 26. Rd1 {[%clk 0:00:17.4]}
26... Rb7 {[%clk 0:00:18.8]} 27. Bb6 {[%clk 0:00:15.7]} 27... e6 {[%clk
0:00:18]} 28. Nc7+ {[%clk 0:00:15.8]} 28... Kf8 {[%clk 0:00:16.9]} 29. Bc5+
{[%clk 0:00:12.5]} 29... Kg8 {[%clk 0:00:16.4]} 30. Rd8+ {[%clk 0:00:12.6]}
30... Bf8 {[%clk 0:00:17]} 31. Ne8 {[%clk 0:00:08.9]} 31... h5 {[%clk 0:00:07]}
32. Nf6+ {[%clk 0:00:08.9]} 32... Kg7 {[%clk 0:00:07.5]} 33. Nxh5+ {[%clk
0:00:09.4]} 33... Kh6 {[%clk 0:00:07.7]} 34. Bxf8+ {[%clk 0:00:09.3]} 34... Kxh5
{[%clk 0:00:07.9]} 35. g3 {[%clk 0:00:07.3]} 35... Kg4 {[%clk 0:00:07.7]} 36.
Bc5 {[%clk 0:00:06.5]} 36... Kf3 {[%clk 0:00:07.4]} 37. Rd2 {[%clk 0:00:05.2]}
37... c3 {[%clk 0:00:06.9]} 38. bxc3 {[%clk 0:00:05.3]} 38... Rb8 {[%clk
0:00:07.1]} 39. Bb4 {[%clk 0:00:05.9]} 39... Rh8 {[%clk 0:00:06.6]} 40. Kb2
{[%clk 0:00:06]} 40... Rb8 {[%clk 0:00:03.9]} 41. Ka3 {[%clk 0:00:06]} 41... Ke4
{[%clk 0:00:04.8]} 42. c4 {[%clk 0:00:05.7]} 42... Rb7 {[%clk 0:00:04.3]} 43.
Rd3 {[%clk 0:00:03.4]} 43... Rc7 {[%clk 0:00:04]} 44. Kb3 {[%clk 0:00:02.9]}
44... Rc8 {[%clk 0:00:04.7]} 45. Bd6 {[%clk 0:00:03]} 45... Rc6 {[%clk
0:00:02.1]} 46. c5 {[%clk 0:00:03.5]} 46... f6 {[%clk 0:00:02.6]} 47. Kc4 {[%clk
0:00:03.7]} 47... fxe5 {[%clk 0:00:02.6]} 48. fxe5 {[%clk 0:00:04.6]} 48...
Nxe5+ {[%clk 0:00:03]} 49. Bxe5 {[%clk 0:00:05.5]} 49... Kxe5 {[%clk 0:00:03.9]}
50. Kb5 {[%clk 0:00:06.4]} 50... Rc8 {[%clk 0:00:04.5]} 51. c6 {[%clk
0:00:07.1]} 51... Ke4 {[%clk 0:00:05.2]} 52. Kb6 {[%clk 0:00:07.2]} 52... e5
{[%clk 0:00:05.8]} 53. c7 {[%clk 0:00:07.5]} 53... Rh8 {[%clk 0:00:06.5]} 54.
Rd8 {[%clk 0:00:07.5]} 54... Rh6+ {[%clk 0:00:05.2]} 55. Kb5 {[%clk 0:00:08.1]}
55... f4 {[%clk 0:00:04.9]} 56. c8=Q {[%clk 0:00:07.7]} 56... fxg3 {[%clk
0:00:03.8]} 57. hxg3 {[%clk 0:00:08.6]} 57... Kf3 {[%clk 0:00:04.1]} 58. Qc3+
{[%clk 0:00:08.5]} 58... Kg2 {[%clk 0:00:04.3]} 59. Qxe5 {[%clk 0:00:07.7]} 1-0